[Event "ESTCC-65 2025"]
[Site "Swidnica"]
[Date "2025.04.05"]
[Round "1.1"]
[White "Raupp, Thomas"]
[Black "Quinn, John M"]
[Result "1/2-1/2"]
[Annotator "ChessBase"]
[ECO "E73"]
[WhiteElo "2247"]
[BlackElo "2073"]
[PlyCount "66"]
[EventDate "2025.04.05"]
[EventType "team-tourn"]
[EventCountry "POL"]
[SourceTitle "playchess.com"]
[Source "ChessBase"]
[SourceQuality "1"]
[WhiteTeam "Germany"]
[BlackTeam "England"]
[WhiteTeamCountry "GER"]
[BlackTeamCountry "ENG"]
[TimeControl "40/5400+30:1800+30"]

1. d4 {[%emt 0:00:08]} Nf6 {[%emt 0:00:07]} 2. c4 {[%emt 0:00:04]} g6 {[%emt 0:00:06]} 3. Nc3 {[%emt 0:00:04]} Bg7 {[%emt 0:00:06]} 4. e4 {[%emt 0:00:08]} d6 {[%emt 0:00:04]} 5. Be2 {[%emt 0:00:09]} O-O {[%emt 0:00:09]} 6. Be3 {[%emt 0:00:16]} e5 {[%emt 0:00:40]} 7. d5 {[%emt 0:00:18]} Na6 {[%emt 0:00:26]} 8. g4 {[%emt 0:01:58]} Nc5 {[%emt 0:01:23]} 9. f3 {[%emt 0:00:14]} h5 {[%emt 0:03:04]} 10. g5 {[%emt 0:01:04]} Nh7 {[%emt 0:02:00]} 11. h4 {[%emt 0:00:21]} f6 {[%emt 0:12:21]} 12. Qd2 {[%emt 0:01:50]} fxg5 {[%emt 0:06:30]} 13. hxg5 {[%emt 0:00:45]} Rf4 {[%emt 0:00:41]} 14. b4 {[%emt 0:00:35]} Na6 {[%emt 0:07:37]} 15. Rb1 {[%emt 0:00:20]} Nxg5 {[%emt 0:05:00]} 16. c5 {[%emt 0:01:44]} Qf6 {[%emt 0:12:27]} 17. c6 {[%emt 0:08:08]} Nf7 {[%emt 0:19:23]} 18. Bc4 {[%emt 0:30:42]} Rh4 {[%emt 0:11:43]} 19. Rxh4 {[%emt 0:05:33]} Qxh4+ {[%emt 0:00:05]} 20. Kd1 {[%emt 0:03:14]} Bf6 {[%emt 0:04:02]} 21. Qe2 {[%emt 0:02:26]} Bg5 {[%emt 0:02:39]} 22. Bxg5 {[%emt 0:26:17]} Nxg5 {[%emt 0:00:30]} 23. cxb7 {[%emt 0:05:00]} Bxb7 {[%emt 0:00:06]} 24. Bxa6 {[%emt 0:00:17]} Bxa6 {[%emt 0:00:14]} 25. Qxa6 {[%emt 0:00:07]} Qf2 {[%emt 0:00:53]} 26. Nce2 {[%emt 0:02:31]} Nxf3 {[%emt 0:01:28]} 27. Nxf3 {[%emt 0:01:50]} Qxf3 {[%emt 0:00:06]} 28. Rc1 {[%emt 0:05:22]} Qxe4 {[%emt 0:02:48]} 29. Qb7 {[%emt 0:00:50]} Rf8 {[%emt 0:00:39]} 30. Rxc7 {[%emt 0:00:52]} Qd3+ {[%emt 0:01:55]} 31. Ke1 {[%emt 0:00:23]} Qb1+ {[%emt 0:00:30]} 32. Kd2 {[%emt 0:01:17]} Qxa2+ {[%emt 0:00:40]} 33. Rc2 {[%emt 0:01:08]} Qb3 {[%emt 0:01:58]} 1/2-1/2

[Event "ESTCC-65 2025"]
[Site "Swidnica"]
[Date "2025.04.05"]
[Round "1.2"]
[White "Bowmer, Kevin"]
[Black "Miltner, Arndt"]
[Result "1/2-1/2"]
[Annotator "ChessBase"]
[ECO "C41"]
[WhiteElo "2126"]
[BlackElo "2232"]
[PlyCount "38"]
[EventDate "2025.04.05"]
[EventType "team-tourn"]
[EventCountry "POL"]
[SourceTitle "playchess.com"]
[Source "ChessBase"]
[SourceQuality "1"]
[WhiteTeam "England"]
[BlackTeam "Germany"]
[WhiteTeamCountry "ENG"]
[BlackTeamCountry "GER"]
[TimeControl "40/5400+30:1800+30"]

1. e4 {[%emt 0:00:05]} d6 {[%emt 0:00:19]} 2. d4 {[%emt 0:00:11]} Nf6 {[%emt 0:00:15]} 3. Nc3 {[%emt 0:00:06]} e5 {[%emt 0:00:23]} 4. Nf3 {[%emt 0:00:23]} Nbd7 {[%emt 0:00:31]} 5. Bc4 {[%emt 0:00:21]} Be7 {[%emt 0:00:23]} 6. O-O {[%emt 0:00:32]} O-O {[%emt 0:00:26]} 7. Re1 {[%emt 0:00:27]} Nb6 {[%emt 0:03:42]} 8. Bf1 {[%emt 0:01:35]} exd4 {[%emt 0:01:28]} 9. Nxd4 {[%emt 0:00:45]} d5 {[%emt 0:01:09]} 10. exd5 {[%emt 0:01:21]} Nbxd5 {[%emt 0:00:59]} 11. Nxd5 {[%emt 0:01:48]} Nxd5 {[%emt 0:01:44]} 12. Qf3 {[%emt 0:01:50]} c6 {[%emt 0:04:45]} 13. c3 {[%emt 0:01:26]} Bf6 {[%emt 0:10:29]} 14. Nb3 {[%emt 0:04:30]} Qb6 {[%emt 0:10:03]} 15. c4 {[%emt 0:11:04]} Ne7 {[%emt 0:04:13]} 16. Be3 {[%emt 0:04:16]} Qc7 {[%emt 0:01:38]} 17. Bf4 {[%emt 0:03:14]} Qb6 {[%emt 0:02:07]} 18. Be3 {[%emt 0:05:19]} Qc7 {[%emt 0:01:28]} 19. Bf4 {[%emt 0:01:04]} Qb6 {[%emt 0:00:24]} 1/2-1/2

[Event "ESTCC-65 2025"]
[Site "Swidnica"]
[Date "2025.04.05"]
[Round "1.3"]
[White "Vatter, Hans-Joachim"]
[Black "Hewson, Brian W R"]
[Result "1/2-1/2"]
[Annotator "ChessBase"]
[ECO "B13"]
[WhiteElo "2192"]
[BlackElo "2066"]
[PlyCount "89"]
[EventDate "2025.04.05"]
[EventType "team-tourn"]
[EventCountry "POL"]
[SourceTitle "playchess.com"]
[Source "ChessBase"]
[SourceQuality "1"]
[WhiteTeam "Germany"]
[BlackTeam "England"]
[WhiteTeamCountry "GER"]
[BlackTeamCountry "ENG"]
[TimeControl "40/5400+30:1800+30"]

1. e4 {[%emt 0:00:04]} c6 {[%emt 0:00:05]} 2. d4 {[%emt 0:00:37]} d5 {[%emt 0:00:12]} 3. exd5 {[%emt 0:00:08]} cxd5 {[%emt 0:00:07]} 4. Bd3 {[%emt 0:00:06]} Nc6 {[%emt 0:00:05]} 5. c3 {[%emt 0:00:04]} Qc7 {[%emt 0:00:12]} 6. h3 {[%emt 0:00:33]} g6 {[%emt 0:00:47]} 7. Qc2 {[%emt 0:00:12]} Bg7 {[%emt 0:02:35]} 8. Nf3 {[%emt 0:01:29]} Nf6 {[%emt 0:03:59]} 9. O-O {[%emt 0:00:41]} O-O {[%emt 0:00:17]} 10. Re1 {[%emt 0:01:20]} Nh5 {[%emt 0:01:03]} 11. Be3 {[%emt 0:01:47]} Nf4 {[%emt 0:02:18]} 12. Bf1 {[%emt 0:00:12]} Nh5 {[%emt 0:03:12]} 13. Bd3 {[%emt 0:14:57]} Nf4 {[%emt 0:02:02]} 14. Bf1 {[%emt 0:00:16]} Nh5 {[%emt 0:00:04]} 15. Qb3 {[%emt 0:00:25]} Nf6 {[%emt 0:04:23]} 16. Nbd2 {[%emt 0:00:43]} Na5 {[%emt 0:05:27]} 17. Qd1 {[%emt 0:03:51]} b6 {[%emt 0:06:37]} 18. Ne5 {[%emt 0:02:14]} Nd7 {[%emt 0:02:49]} 19. Nxd7 {[%emt 0:07:39]} Bxd7 {[%emt 0:08:47]} 20. Qf3 {[%emt 0:00:44]} Be6 {[%emt 0:03:33]} 21. Bf4 {[%emt 0:01:27]} Qd7 {[%emt 0:01:18]} 22. Qe3 {[%emt 0:04:09]} Nc4 {[%emt 0:07:20]} 23. Bxc4 {[%emt 0:00:52]} dxc4 {[%emt 0:00:06]} 24. Be5 {[%emt 0:00:06]} Rfe8 {[%emt 0:03:10]} 25. Bxg7 {[%emt 0:00:15]} Kxg7 {[%emt 0:00:09]} 26. Nf3 {[%emt 0:00:35]} Bd5 {[%emt 0:04:40]} 27. Ne5 {[%emt 0:09:35]} Qe6 {[%emt 0:09:32]} 28. Qg3 {[%emt 0:03:18]} Qf5 {[%emt 0:02:08]} 29. Re2 {[%emt 0:03:40]} h5 {[%emt 0:06:39]} 30. f4 {[%emt 0:02:58]} Rac8 {[%emt 0:05:26]} 31. Rae1 {[%emt 0:02:32]} Rc7 {[%emt 0:01:50]} 32. Qf2 {[%emt 0:04:01]} e6 {[%emt 0:04:19]} 33. Re3 {[%emt 0:04:58]} Rh8 {[%emt 0:01:18]} 34. Rg3 {[%emt 0:06:15]} Qf6 {[%emt 0:05:50]} 35. Rg5 {[%emt 0:03:36]} Rh6 {[%emt 0:01:15]} 36. Qe3 {[%emt 0:01:07]} Qd8 {[%emt 0:00:37]} 37. Rg3 {[%emt 0:05:12]} Qf6 {[%emt 0:01:54]} 38. Rf1 {[%emt 0:00:41]} Qf5 {[%emt 0:01:14]} 39. Re1 {[%emt 0:04:27]} Qc2 {[%emt 0:01:02]} 40. Re2 {[%emt 0:00:00]} Qb1+ {[%emt 0:00:00]} 41. Kh2 {[%emt 0:01:06]} Qf5 {[%emt 0:00:26]} 42. Rg5 {[%emt 0:01:57]} Qf6 {[%emt 0:01:44]} 43. Rf2 {[%emt 0:02:26]} Qd8 {[%emt 0:00:34]} 44. Rg3 {[%emt 0:05:02]} Qf6 {[%emt 0:04:10]} 45. Rg5 {[%emt 0:01:00]} 1/2-1/2

[Event "ESTCC-65 2025"]
[Site "Swidnica"]
[Date "2025.04.05"]
[Round "1.4"]
[White "Higgie, Charles L"]
[Black "Vogel, Robert"]
[Result "0-1"]
[Annotator "NA"]
[ECO "B06"]
[WhiteElo "1992"]
[BlackElo "2145"]
[PlyCount "78"]
[EventDate "2025.04.05"]
[EventType "team-tourn"]
[EventCountry "POL"]
[SourceTitle "playchess.com"]
[Source "ChessBase"]
[SourceQuality "1"]
[WhiteTeam "England"]
[BlackTeam "Germany"]
[WhiteTeamCountry "ENG"]
[BlackTeamCountry "GER"]
[TimeControl "40/5400+30:1800+30"]

1. e4 {[%emt 0:00:01]} g6 {[%emt 0:00:20]} 2. d4 {[%emt 0:00:19]} Bg7 {[%emt 0:00:06]} 3. Nc3 {[%emt 0:00:04]} d6 {[%emt 0:00:07]} 4. Be3 {[%emt 0:00:07]} c6 {[%emt 0:01:04]} 5. Qd2 {[%emt 0:00:15]} b5 {[%emt 0:00:50]} 6. f3 {[%emt 0:02:44]} Nd7 {[%emt 0:01:42]} 7. d5 {[%emt 0:04:35]} b4 {[%emt 0:02:19]} 8. dxc6 {[%emt 0:02:18]} bxc3 {[%emt 0:00:13]} 9. cxd7+ {[%emt 0:00:07]} Bxd7 {[%emt 0:00:14]} 10. bxc3 {[%emt 0:00:10]} Qa5 {[%emt 0:04:41]} 11. Bd4 {[%emt 0:00:55]} Nf6 {[%emt 0:00:28]} 12. Bd3 {[%emt 0:01:14]} O-O {[%emt 0:16:15]} 13. Ne2 {[%emt 0:00:13]} e5 {[%emt 0:05:50]} 14. Be3 {[%emt 0:01:37]} d5 {[%emt 0:01:14]} 15. O-O {[%emt 0:20:24]} dxe4 {[%emt 0:05:38]} 16. fxe4 {[%emt 0:00:28]} Bc6 {[%emt 0:01:28]} 17. Ng3 {[%emt 0:00:25]} Rad8 {[%emt 0:06:49]} 18. Bg5 {[%emt 0:12:49]} Rd6 {[%emt 0:09:13]} 19. Qe1 {[%emt 0:04:51]} Qc7 {[%emt 0:07:54]} 20. Rf3 {[%emt 0:06:43]} h6 {[%emt 0:06:47]} 21. Bh4 {[%emt 0:07:50]} Bd7 {[%emt 0:07:34]} 22. Ne2 {[%emt 0:02:29]} Bg4 {[%emt 0:02:10]} 23. Rf2 {[%emt 0:01:08]} Rc8 {[%emt 0:04:03]} 24. c4 {[%emt 0:00:31]} Bxe2 {[%emt 0:02:24]} 25. Qxe2 {[%emt 0:00:09]} Nh5 {[%emt 0:00:56]} 26. g3 {[%emt 0:03:35]} Rd7 {[%emt 0:04:11]} 27. Qe3 {[%emt 0:02:58]} Qc5 {[%emt 0:01:22]} 28. Re1 {[%emt 0:05:29]} Qxe3 {[%emt 0:00:22]} 29. Rxe3 {[%emt 0:00:02]} Bf8 {[%emt 0:00:15]} 30. g4 {[%emt 0:03:40]} Nf4 {[%emt 0:01:12]} 31. Rxf4 {[%emt 0:00:37]} exf4 {[%emt 0:00:03]} 32. Rf3 {[%emt 0:00:14]} g5 {[%emt 0:00:18]} 33. Be1 {[%emt 0:00:24]} Rb8 {[%emt 0:01:10]} 34. Bc3 {[%emt 0:01:04]} Bc5+ {[%emt 0:00:11]} 35. Kg2 {[%emt 0:00:41]} Bd4 {[%emt 0:00:08]} 36. Bf1 {[%emt 0:02:38]} Bxc3 {[%emt 0:00:36]} 37. Rxc3 {[%emt 0:00:02]} Rd2+ {[%emt 0:02:04]} 38. Kf3 {[%emt 0:01:06]} Rb1 {[%emt 0:02:44]} 39. Bd3 {[%emt 0:00:29]} Re1 {[%emt 0:00:31]} 0-1

[Event "ESTCC-65 2025"]
[Site "Swidnica"]
[Date "2025.04.05"]
[Round "1.5"]
[White "Mononen, Heikki"]
[Black "Vadlja, Stjepan"]
[Result "1-0"]
[Annotator "NA"]
[ECO "C03"]
[WhiteElo "1830"]
[BlackElo "1697"]
[PlyCount "51"]
[EventDate "2025.04.05"]
[EventType "team-tourn"]
[EventCountry "POL"]
[SourceTitle "playchess.com"]
[Source "ChessBase"]
[SourceQuality "1"]
[WhiteTeam "Finland"]
[BlackTeam "Croatia"]
[WhiteTeamCountry "FIN"]
[BlackTeamCountry "CRO"]
[TimeControl "40/5400+30:1800+30"]

1. e4 {[%emt 0:00:13]} e6 {[%emt 0:00:11]} 2. d4 {[%emt 0:00:23]} d5 {[%emt 0:00:15]} 3. Nd2 {[%emt 0:01:01]} dxe4 4. Nxe4 Nf6 {[%emt 0:03:20]} 5. Nxf6+ {[%emt 0:03:08]} Qxf6 6. Nf3 Qd8 {[%emt 0:02:15]} 7. Bd3 {[%emt 0:05:30]} Be7 {[%emt 0:00:18]} 8. Qe2 {[%emt 0:05:56]} Bf6 {[%emt 0:02:18]} 9. c3 {[%emt 0:07:49]} Qe7 {[%emt 0:07:32]} 10. Bf4 {[%emt 0:03:27]} c6 {[%emt 0:02:31]} 11. O-O-O {[%emt 0:02:19]} Nd7 {[%emt 0:01:22]} 12. g4 {[%emt 0:04:08]} g6 {[%emt 0:05:58]} 13. h4 {[%emt 0:03:36]} Bg7 {[%emt 0:00:56]} 14. h5 {[%emt 0:02:29]} Nf8 {[%emt 0:05:47]} 15. h6 {[%emt 0:01:01]} Rg8 {[%emt 0:01:22]} 16. hxg7 {[%emt 0:00:23]} Rxg7 {[%emt 0:02:38]} 17. Bh6 {[%emt 0:01:32]} Rg8 {[%emt 0:00:11]} 18. Bxf8 {[%emt 0:00:24]} Qxf8 {[%emt 0:00:31]} 19. Rxh7 {[%emt 0:00:27]} Bd7 {[%emt 0:00:12]} 20. Ne5 {[%emt 0:10:52]} O-O-O {[%emt 0:01:22]} 21. Nxf7 {[%emt 0:04:28]} Re8 {[%emt 0:00:34]} 22. Qe5 {[%emt 0:00:25]} Re7 {[%emt 0:01:50]} 23. Nd6+ {[%emt 0:01:40]} Kd8 {[%emt 0:02:59]} 24. Nxb7+ {[%emt 0:00:22]} Kc8 {[%emt 0:01:22]} 25. Nd6+ {[%emt 0:00:11]} Kd8 {[%emt 0:00:26]} 26. Qa5# 1-0

[Event "ESTCC-65 2025"]
[Site "Swidnica"]
[Date "2025.04.05"]
[Round "1.6"]
[White "Sobocanec, Alojz"]
[Black "Joentausta, Hannu"]
[Result "0-1"]
[Annotator "NA"]
[ECO "E00"]
[WhiteElo "1792"]
[BlackElo "2081"]
[PlyCount "108"]
[EventDate "2025.04.05"]
[EventType "team-tourn"]
[EventCountry "POL"]
[SourceTitle "playchess.com"]
[Source "ChessBase"]
[SourceQuality "1"]
[WhiteTeam "Croatia"]
[BlackTeam "Finland"]
[WhiteTeamCountry "CRO"]
[BlackTeamCountry "FIN"]
[TimeControl "40/5400+30:1800+30"]

1. d4 {[%emt 0:15:10]} Nf6 {[%emt 0:00:05]} 2. c4 {[%emt 0:00:04]} e6 {[%emt 0:00:11]} 3. a3 {[%emt 0:00:22]} d5 {[%emt 0:00:14]} 4. Nc3 {[%emt 0:00:11]} Be7 {[%emt 0:00:41]} 5. Nf3 O-O {[%emt 0:00:16]} 6. e3 {[%emt 0:00:24]} b6 {[%emt 0:01:09]} 7. Be2 {[%emt 0:00:32]} Bb7 {[%emt 0:00:28]} 8. O-O {[%emt 0:00:05]} Nbd7 {[%emt 0:00:45]} 9. b3 {[%emt 0:02:02]} c5 {[%emt 0:00:16]} 10. Bb2 {[%emt 0:00:27]} a6 {[%emt 0:11:32]} 11. Rc1 {[%emt 0:00:38]} Ra7 {[%emt 0:06:07]} 12. Qc2 {[%emt 0:01:15]} Qa8 {[%emt 0:03:57]} 13. Rfd1 {[%emt 0:03:18]} Rc8 {[%emt 0:14:52]} 14. Ne1 {[%emt 0:02:19]} h6 {[%emt 0:06:18]} 15. Qd2 {[%emt 0:01:17]} cxd4 {[%emt 0:06:31]} 16. exd4 {[%emt 0:00:11]} Ne4 {[%emt 0:00:47]} 17. Nxe4 {[%emt 0:00:55]} dxe4 {[%emt 0:00:02]} 18. Qc3 {[%emt 0:01:24]} Bg5 {[%emt 0:01:23]} 19. Rc2 {[%emt 0:01:12]} Qb8 {[%emt 0:07:35]} 20. Bc1 Bxc1 {[%emt 0:01:42]} 21. Rcxc1 {[%emt 0:03:41]} Nf6 {[%emt 0:01:03]} 22. Qg3 {[%emt 0:00:55]} Qxg3 {[%emt 0:01:39]} 23. hxg3 Ba8 {[%emt 0:06:34]} 24. Nc2 {[%emt 0:03:00]} Rd7 {[%emt 0:04:06]} 25. f3 {[%emt 0:00:34]} Rcd8 {[%emt 0:00:50]} 26. Kf2 {[%emt 0:00:14]} Bb7 {[%emt 0:02:23]} 27. g4 g5 28. Ke3 {[%emt 0:06:26]} Kg7 {[%emt 0:01:40]} 29. Rd2 {[%emt 0:00:19]} h5 {[%emt 0:00:56]} 30. gxh5 {[%emt 0:00:37]} exf3 {[%emt 0:00:30]} 31. Bxf3 {[%emt 0:00:12]} Bxf3 {[%emt 0:00:26]} 32. gxf3 {[%emt 0:03:25]} Nxh5 {[%emt 0:00:55]} 33. Rg1 Kg6 {[%emt 0:02:10]} 34. Rdg2 {[%emt 0:01:08]} f6 {[%emt 0:00:58]} 35. Rg4 {[%emt 0:00:07]} Ng7 {[%emt 0:04:03]} 36. Ke2 {[%emt 0:02:02]} Nf5 {[%emt 0:01:33]} 37. Rd1 {[%emt 0:00:25]} Rh8 {[%emt 0:03:34]} 38. Rg2 {[%emt 0:02:17]} Rh3 {[%emt 0:02:20]} 39. Rd3 {[%emt 0:02:55]} Kf7 {[%emt 0:05:38]} 40. Kd2 {[%emt 0:00:28]} Nh4 {[%emt 0:00:36]} 41. Rf2 {[%emt 0:00:12]} Ng6 {[%emt 0:00:12]} 42. d5 {[%emt 0:00:54]} exd5 {[%emt 0:01:24]} 43. Rxd5 {[%emt 0:00:21]} Rxd5+ {[%emt 0:05:14]} 44. cxd5 Ne5 {[%emt 0:04:39]} 45. Ke2 {[%emt 0:00:24]} g4 {[%emt 0:01:38]} 46. fxg4 {[%emt 0:01:07]} Nxg4 {[%emt 0:00:21]} 47. Rf3 {[%emt 0:00:31]} Rh2+ {[%emt 0:02:17]} 48. Kd1 {[%emt 0:00:07]} Rh5 {[%emt 0:00:15]} 49. Ne3 {[%emt 0:01:08]} Nxe3+ {[%emt 0:00:18]} 50. Rxe3 {[%emt 0:00:03]} Rxd5+ {[%emt 0:00:10]} 51. Kc2 {[%emt 0:00:06]} f5 {[%emt 0:00:14]} 52. Rh3 {[%emt 0:00:49]} Rd6 {[%emt 0:01:46]} 53. b4 {[%emt 0:01:15]} b5 {[%emt 0:00:42]} 54. Kc3 {[%emt 0:02:33]} Kg6 {[%emt 0:00:39]} 0-1

[Event "ESTCC-65 2025"]
[Site "Swidnica"]
[Date "2025.04.05"]
[Round "1.7"]
[White "Vinke, Dietmar"]
[Black "Novak, Stjepan"]
[Result "1-0"]
[Annotator "NA"]
[ECO "A04"]
[WhiteElo "2078"]
[BlackElo "1671"]
[PlyCount "53"]
[EventDate "2025.04.05"]
[EventType "team-tourn"]
[EventCountry "POL"]
[SourceTitle "playchess.com"]
[Source "ChessBase"]
[SourceQuality "1"]
[WhiteTeam "Finland"]
[BlackTeam "Croatia"]
[WhiteTeamCountry "FIN"]
[BlackTeamCountry "CRO"]
[TimeControl "40/5400+30:1800+30"]

1. Nf3 {[%emt 0:00:02]} b6 {[%emt 0:00:28]} 2. g3 {[%emt 0:00:13]} c5 {[%emt 0:00:34]} 3. Bg2 {[%emt 0:00:05]} Nc6 {[%emt 0:00:17]} 4. O-O {[%emt 0:00:17]} Bb7 {[%emt 0:00:03]} 5. e4 {[%emt 0:00:22]} e5 {[%emt 0:00:58]} 6. d3 {[%emt 0:00:49]} Nge7 {[%emt 0:00:40]} 7. c4 {[%emt 0:05:10]} Ng6 {[%emt 0:00:32]} 8. Nc3 {[%emt 0:01:13]} Nd4 {[%emt 0:00:35]} 9. Nxd4 {[%emt 0:05:54]} cxd4 {[%emt 0:00:40]} 10. Nd5 {[%emt 0:02:47]} Bxd5 {[%emt 0:05:30]} 11. cxd5 {[%emt 0:00:19]} Bd6 {[%emt 0:01:07]} 12. Bd2 {[%emt 0:25:57]} O-O {[%emt 0:08:28]} 13. Bh3 {[%emt 0:14:05]} a5 {[%emt 0:01:09]} 14. Qa4 {[%emt 0:00:22]} Ra7 {[%emt 0:00:21]} 15. b4 {[%emt 0:00:44]} Ne7 {[%emt 0:02:23]} 16. Rab1 {[%emt 0:03:10]} Qa8 {[%emt 0:03:03]} 17. bxa5 {[%emt 0:00:42]} bxa5 {[%emt 0:00:23]} 18. Rb5 {[%emt 0:00:38]} Bb4 {[%emt 0:00:40]} 19. Bxb4 {[%emt 0:01:02]} axb4 {[%emt 0:00:11]} 20. Qxb4 {[%emt 0:00:04]} Ng6 {[%emt 0:03:04]} 21. Rb1 {[%emt 0:04:04]} Rxa2 {[%emt 0:08:31]} 22. Rb8 {[%emt 0:00:34]} Rxb8 {[%emt 0:02:33]} 23. Qxb8+ {[%emt 0:00:07]} Qxb8 {[%emt 0:00:19]} 24. Rxb8+ {[%emt 0:00:06]} Nf8 {[%emt 0:00:13]} 25. Bxd7 {[%emt 0:00:42]} Rd2 {[%emt 0:00:57]} 26. Bb5 {[%emt 0:00:55]} Rb2 {[%emt 0:00:11]} 27. d6 1-0

[Event "ESTCC-65 2025"]
[Site "Swidnica"]
[Date "2025.04.05"]
[Round "1.8"]
[White "Petanjek, Zvonko"]
[Black "Patola, Eero"]
[Result "1/2-1/2"]
[Annotator "NA"]
[ECO "B01"]
[WhiteElo "1732"]
[BlackElo "1872"]
[PlyCount "159"]
[EventDate "2025.04.05"]
[EventType "team-tourn"]
[EventCountry "POL"]
[SourceTitle "playchess.com"]
[Source "ChessBase"]
[SourceQuality "1"]
[WhiteTeam "Croatia"]
[BlackTeam "Finland"]
[WhiteTeamCountry "CRO"]
[BlackTeamCountry "FIN"]
[TimeControl "40/5400+30:1800+30"]

1. e4 {[%emt 0:00:05]} d5 {[%emt 0:00:19]} 2. exd5 {[%emt 0:00:25]} Nf6 {[%emt 0:00:13]} 3. Nc3 {[%emt 0:00:23]} Nxd5 {[%emt 0:00:33]} 4. Nxd5 {[%emt 0:00:12]} Qxd5 {[%emt 0:00:19]} 5. Qe2 {[%emt 0:00:07]} g6 {[%emt 0:06:18]} 6. Qb5+ {[%emt 0:00:10]} c6 {[%emt 0:05:39]} 7. Qxd5 {[%emt 0:00:07]} cxd5 {[%emt 0:00:22]} 8. Bb5+ {[%emt 0:00:15]} Bd7 {[%emt 0:01:26]} 9. Bxd7+ {[%emt 0:02:22]} Nxd7 {[%emt 0:00:12]} 10. d4 {[%emt 0:00:12]} Bg7 {[%emt 0:00:55]} 11. c3 {[%emt 0:00:14]} O-O {[%emt 0:01:48]} 12. Nf3 {[%emt 0:00:08]} Nb6 {[%emt 0:04:14]} 13. O-O {[%emt 0:01:23]} Rfe8 {[%emt 0:02:09]} 14. Re1 {[%emt 0:00:14]} Rac8 {[%emt 0:01:28]} 15. Rb1 {[%emt 0:04:28]} Nc4 {[%emt 0:06:52]} 16. Be3 {[%emt 0:07:00]} b5 {[%emt 0:06:17]} 17. a3 {[%emt 0:00:48]} a5 {[%emt 0:01:07]} 18. Nd2 {[%emt 0:00:46]} e6 {[%emt 0:03:28]} 19. Nxc4 {[%emt 0:01:07]} Rxc4 {[%emt 0:00:37]} 20. f4 {[%emt 0:01:00]} Rb8 {[%emt 0:01:15]} 21. Bd2 {[%emt 0:00:19]} Bf8 {[%emt 0:02:02]} 22. b3 {[%emt 0:00:34]} Rc6 {[%emt 0:03:08]} 23. b4 {[%emt 0:00:08]} axb4 {[%emt 0:02:21]} 24. axb4 {[%emt 0:00:16]} Ra6 {[%emt 0:00:57]} 25. Ra1 {[%emt 0:00:54]} Rba8 {[%emt 0:00:20]} 26. Rxa6 {[%emt 0:00:07]} Rxa6 {[%emt 0:00:15]} 27. Kf2 {[%emt 0:00:02]} Bd6 {[%emt 0:04:25]} 28. g3 {[%emt 0:00:21]} Kg7 {[%emt 0:03:33]} 29. h4 {[%emt 0:01:42]} Ra2 {[%emt 0:03:41]} 30. Ke3 {[%emt 0:05:30]} h5 {[%emt 0:04:00]} 31. Re2 {[%emt 0:01:56]} Kf6 {[%emt 0:02:06]} 32. Kf3 {[%emt 0:00:45]} Kf5 {[%emt 0:01:42]} 33. Be1 {[%emt 0:01:24]} Rxe2 {[%emt 0:01:32]} 34. Kxe2 {[%emt 0:00:08]} Ke4 {[%emt 0:00:51]} 35. Bd2 {[%emt 0:00:21]} f6 {[%emt 0:02:52]} 36. Be1 {[%emt 0:08:51]} e5 {[%emt 0:01:30]} 37. fxe5 {[%emt 0:01:32]} fxe5 {[%emt 0:00:27]} 38. dxe5 {[%emt 0:03:26]} Bxe5 {[%emt 0:00:20]} 39. Kd2 {[%emt 0:00:33]} Kf3 {[%emt 0:10:32]} 40. Kd3 {[%emt 0:00:00]} Kg2 {[%emt 0:00:00]} 41. Ke3 {[%emt 0:00:31]} Kf1 {[%emt 0:02:37]} 42. Kd2 {[%emt 0:02:49]} Bxc3+ {[%emt 0:07:13]} 43. Kxc3 {[%emt 0:00:13]} Kxe1 {[%emt 0:00:08]} 44. Kd4 {[%emt 0:00:05]} Kf2 {[%emt 0:00:52]} 45. Kxd5 {[%emt 0:00:06]} Kxg3 {[%emt 0:00:10]} 46. Kc5 Kxh4 47. Kxb5 {[%emt 0:01:10]} g5 {[%emt 0:01:02]} 48. Kc6 {[%emt 0:00:06]} g4 {[%emt 0:00:17]} 49. b5 {[%emt 0:00:04]} g3 {[%emt 0:00:14]} 50. b6 {[%emt 0:00:04]} g2 {[%emt 0:00:22]} 51. b7 {[%emt 0:00:03]} g1=Q {[%emt 0:00:24]} 52. b8=Q {[%emt 0:00:10]} Qg2+ {[%emt 0:07:34]} 53. Kd7 {[%emt 0:00:31]} Qd5+ {[%emt 0:00:25]} 54. Ke7 {[%emt 0:00:52]} Qg5+ {[%emt 0:01:19]} 55. Ke6 {[%emt 0:00:47]} Qg6+ {[%emt 0:03:54]} 56. Kd7 {[%emt 0:00:08]} Qf7+ {[%emt 0:01:25]} 57. Kc6 {[%emt 0:00:29]} Qe6+ {[%emt 0:02:29]} 58. Kc5 {[%emt 0:00:22]} Qf5+ {[%emt 0:01:18]} 59. Kc6 {[%emt 0:00:14]} Kg4 {[%emt 0:03:22]} 60. Qh2 {[%emt 0:12:33]} Qf3+ {[%emt 0:02:19]} 61. Kd7 {[%emt 0:00:33]} h4 {[%emt 0:01:21]} 62. Qg1+ {[%emt 0:04:11]} Kh3 {[%emt 0:00:56]} 63. Qa1 {[%emt 0:01:55]} Qg4+ {[%emt 0:05:13]} 64. Kc6 {[%emt 0:03:01]} Qf3+ {[%emt 0:02:09]} 65. Kd7 {[%emt 0:00:14]} Kg2 {[%emt 0:00:51]} 66. Qg7+ {[%emt 0:04:38]} Qg3 {[%emt 0:00:47]} 67. Qb2+ {[%emt 0:00:10]} Qf2 {[%emt 0:00:20]} 68. Qg7+ {[%emt 0:00:52]} Kf1 {[%emt 0:03:54]} 69. Qa1+ {[%emt 0:00:36]} Qe1 {[%emt 0:01:01]} 70. Qf6+ {[%emt 0:00:08]} Ke2 {[%emt 0:01:03]} 71. Qe5+ {[%emt 0:00:37]} Kf1 {[%emt 0:01:27]} 72. Qf6+ {[%emt 0:00:13]} Kg1 {[%emt 0:00:51]} 73. Qg5+ {[%emt 0:00:53]} Qg3 {[%emt 0:00:46]} 74. Qc1+ {[%emt 0:00:09]} Kh2 {[%emt 0:00:28]} 75. Qb2+ {[%emt 0:00:31]} Kh3 {[%emt 0:00:31]} 76. Qa1 {[%emt 0:00:09]} Qd3+ {[%emt 0:00:55]} 77. Kc6 {[%emt 0:00:50]} Qg6+ {[%emt 0:01:07]} 78. Kd7 {[%emt 0:00:08]} Qd3+ {[%emt 0:01:18]} 79. Kc6 {[%emt 0:00:09]} Qc4+ {[%emt 0:00:26]} 80. Kd7 {[%emt 0:00:10]} 1/2-1/2